fUST/lending_fUST_20251010
["ID","MTS","AMOUNT","RATE_DAILY","PERIOD"]
[390586416,1760093444909,-151.921519,0.00016438,2]
[390586417,1760093444918,-3535.91,0.00016438,2]
[390586418,1760093444928,-3535.91,0.00016438,2]
[390586419,1760093444938,-367.997147,0.00016438,2]
[390586420,1760093444947,-500.0,0.00016438,2]
[390586421,1760093444956,-3535.91,0.00016438,2]
[390586422,1760093444966,-367.997147,0.00016438,2]
[390586423,1760093444976,-3535.91,0.00016438,2]
[390586424,1760093444985,-367.997147,0.00016438,2]
[390586425,1760093444996,-3535.91,0.00016438,2]
[390586426,1760093445005,-3535.91,0.00016438,2]
[390586427,1760093445016,-3535.91,0.00016438,2]
[390586428,1760093445027,-500.0,0.00016438,2]
[390586429,1760093445036,-3535.91,0.00016438,2]
[390586430,1760093445046,-367.997147,0.00016438,2]
[390586431,1760093445055,-151.0,0.00016438,2]
[390586432,1760093445065,-3535.91,0.00016438,2]
[390586433,1760093445075,-367.997147,0.00016438,2]
[390586434,1760093445084,-154.141836,0.00016438,2]
[390586435,1760093445096,-3535.91,0.00016438,2]
[390586436,1760093445105,-367.997147,0.00016438,2]
[390586437,1760093445114,-3535.91,0.00016438,2]
[390586438,1760093445123,-3535.91,0.00016438,2]
[390586439,1760093445133,-500.0,0.00016438,2]
[390586440,1760093445142,-3535.91,0.00016438,2]
[390586441,1760093445152,-3535.91,0.00016438,2]
[390586442,1760093445162,-3535.91,0.00016438,2]
[390586443,1760093445171,-3535.91,0.00016438,2]
[390586444,1760093445181,-500.0,0.00016438,2]
[390586445,1760093445190,-3535.91,0.00016438,2]
[390586446,1760093445200,-3535.91,0.00016438,2]
[390586447,1760093445212,-3536.08809889,0.00016438,2]
[390586448,1760093445221,-500.0,0.00016438,2]
[390586449,1760093445233,-500.0,0.00016438,2]
[390586450,1760093445243,-340.0008303,0.00016438,2]
[390586452,1760093445253,-517.32184556,0.00016438,2]
[390586454,1760093445264,-500.0,0.00016438,2]
[390586456,1760093445273,-500.0,0.00016438,2]
[390586457,1760093445283,-500.0,0.00016438,2]
[390586458,1760093445292,-507.16772828,0.00016438,2]
[390586459,1760093445301,-500.0,0.00016438,2]
[390586460,1760093445311,-500.0,0.00016438,2]
[390586461,1760093445320,-500.0,0.00016438,2]
[390586462,1760093445330,-152.357197,0.00016438,2]
[390586463,1760093445339,-500.0,0.00016438,2]
[390586464,1760093445349,-501.00529747,0.00016438,2]
[390586465,1760093445358,-500.0,0.00016438,2]
[390586466,1760093445368,-500.43630551,0.00016438,2]
[390586467,1760093445377,-500.0,0.00016438,2]
[390586468,1760093445387,-500.0,0.00016438,2]
[390586470,1760093445396,-151.0,0.00016438,2]
[390586471,1760093445405,-525.99772976,0.00016438,2]
[390586472,1760093445414,-151.0,0.00016438,2]
[390586473,1760093445423,-500.0,0.00016438,2]
[390586474,1760093445433,-151.0,0.00016438,2]
[390586475,1760093445442,-151.0,0.00016438,2]
[390586476,1760093445451,-151.0,0.00016438,2]
[390586477,1760093445462,-151.0,0.00016438,2]
[390586478,1760093445471,-500.0,0.00016438,2]
[390586479,1760093445481,-151.0,0.00016438,2]
[390586480,1760093445490,-151.0,0.00016438,2]
[390586481,1760093445499,-151.0,0.00016438,2]
[390586482,1760093445509,-151.0,0.00016438,2]
[390586483,1760093445518,-151.0,0.00016438,2]
[390586484,1760093445528,-185.618188,0.00016438,2]
[390586485,1760093445537,-844.2,0.00016438,2]
[390586486,1760093445547,-4696.06,0.00016438,2]
[390586487,1760093445556,-1052.14,0.00016438,2]
[390586488,1760093445565,-500.0,0.00016438,2]
[390586489,1760093445574,-500.0,0.00016438,2]
[390586490,1760093445583,-592.09,0.00016438,2]
[390586491,1760093445592,-500.0,0.00016438,2]
[390586492,1760093445602,-500.0,0.00016438,2]
[390586493,1760093445611,-500.0,0.00016438,2]
[390586494,1760093445621,-151.0,0.00016438,2]
[390586495,1760093445630,-151.0,0.00016438,2]
[390586496,1760093445639,-500.0,0.00016438,2]
[390586497,1760093445648,-151.0,0.00016438,2]
[390586498,1760093445657,-151.0,0.00016438,2]
[390586499,1760093445666,-151.0,0.00016438,2]
[390586500,1760093445675,-151.0,0.00016438,2]
[390586501,1760093445684,-151.0,0.00016438,2]
[390586502,1760093445694,-151.0,0.00016438,2]
[390586503,1760093445703,-151.0,0.00016438,2]
[390586504,1760093445714,-2234.69,0.00016438,2]
[390586505,1760093445723,-500.0,0.00016438,2]
[390586506,1760093445732,-151.0,0.00016438,2]
[390586507,1760093445742,-500.0,0.00016438,2]
[390586508,1760093445751,-500.0,0.00016438,2]
[390586509,1760093445761,-583.56,0.00016438,2]
[390586510,1760093445773,-422.54032191,0.00016438,2]
[390586511,1760093445783,-500.0,0.00016438,2]
[390586512,1760093445792,-151.0,0.00016438,2]
[390586513,1760093445801,-2206.95,0.00016438,2]
[390586514,1760093445811,-151.0,0.00016438,2]
[390586515,1760093445820,-500.0,0.00016438,2]
[390586516,1760093445831,-151.0,0.00016438,2]
[390586517,1760093445840,-151.0,0.00016438,2]
[390586518,1760093445850,-151.0,0.00016438,2]
[390586519,1760093445866,-151.0,0.00016438,2]
[390586520,1760093445876,-151.0,0.00016438,2]
[390586521,1760093445885,-168.374148,0.00016438,2]
[390586522,1760093445896,-801.24,0.00016438,2]
[390586523,1760093445906,-511.23,0.00016438,2]
[390586524,1760093445915,-920.0,0.00016438,2]
[390586525,1760093445925,-500.0,0.00016438,2]
[390586526,1760093445934,-500.0,0.00016438,2]
[390586527,1760093445943,-702.14,0.00016438,2]
[390586528,1760093445952,-500.0,0.00016438,2]
[390586529,1760093445962,-500.0,0.00016438,2]
[390586530,1760093445972,-500.0,0.00016438,2]
[390586531,1760093445981,-500.0,0.00016438,2]
[390586532,1760093445991,-500.0,0.00016438,2]
[390586533,1760093446000,-2095.46,0.00016438,2]
[390586534,1760093446010,-151.638751,0.00016438,2]
[390586535,1760093446022,-851.5,0.00016438,2]
[390586536,1760093446032,-848.74,0.00016438,2]
[390586537,1760093446041,-199.55682446,0.00016438,2]
[390586538,1760093446051,-500.0,0.00016438,2]
[390586539,1760093446060,-502.44828813,0.00016438,2]
[390586540,1760093446071,-500.4640918,0.00016438,2]
[390586541,1760093446080,-247.39966697,0.00016438,2]
[390586542,1760093446091,-151.0,0.00016438,2]
[390586543,1760093446100,-500.0,0.00016438,2]
[390586545,1760093446110,-500.0,0.00016438,2]
[390586546,1760093446119,-151.0,0.00016438,2]
[390586547,1760093446129,-1154.16,0.00016438,2]
[390586548,1760093446138,-500.0,0.00016438,2]
[390586549,1760093446148,-545.94,0.00016438,2]
[390586550,1760093446157,-500.41016111,0.00016438,2]
[390586551,1760093446166,-557.1,0.00016438,2]
[390586552,1760093446176,-500.0,0.00016438,2]
[390586553,1760093446186,-151.0,0.00016438,2]
[390586554,1760093446195,-500.0,0.00016438,2]
[390586555,1760093446204,-500.0,0.00016438,2]
[390586556,1760093446215,-500.0,0.00016438,2]
[390586557,1760093446224,-277.914755,0.00016438,2]
[390586558,1760093446233,-277.914755,0.00016438,2]
[390586559,1760093446243,-277.914755,0.00016438,2]
[390586560,1760093446252,-500.0,0.00016438,2]
[390586561,1760093446262,-277.914755,0.00016438,2]
[390586562,1760093446271,-277.914755,0.00016438,2]
[390586563,1760093446280,-414.2972915,0.00016438,2]
[390586564,1760093446290,-151.0,0.00016438,2]
[390586565,1760093446300,-151.0,0.00016438,2]
[390586566,1760093446310,-151.0,0.00016438,2]
[390586567,1760093446319,-151.0,0.00016438,2]
[390586568,1760093446329,-245.798995,0.00016438,2]
[390586570,1760093446338,-277.914755,0.00016438,2]
[390586572,1760093446347,-151.0,0.00016438,2]
[390586574,1760093446356,-277.914755,0.00016438,2]
[390586576,1760093446365,-151.0,0.00016438,2]
[390586577,1760093446375,-277.914755,0.00016438,2]
[390586578,1760093446385,-151.0,0.00016438,2]
[390586579,1760093446396,-277.914755,0.00016438,2]
[390586580,1760093446407,-277.914755,0.00016438,2]
[390586581,1760093446418,-151.0,0.00016438,2]
[390586582,1760093446427,-277.914755,0.00016438,2]
[390586584,1760093446437,-151.0,0.00016438,2]
[390586585,1760093446446,-501.23739647,0.00016438,2]
[390586586,1760093446456,-277.914755,0.00016438,2]
[390586587,1760093446467,-151.0,0.00016438,2]
[390586588,1760093446476,-500.0,0.00016438,2]
[390586589,1760093446486,-277.914755,0.00016438,2]
[390586590,1760093446496,-151.0,0.00016438,2]
[390586591,1760093446506,-277.914755,0.00016438,2]
[390586592,1760093446516,-500.0,0.00016438,2]
[390586593,1760093446527,-277.914755,0.00016438,2]
[390586594,1760093446536,-151.0,0.00016438,2]
[390586595,1760093446545,-277.914755,0.00016438,2]
[390586596,1760093446555,-151.0,0.00016438,2]
[390586597,1760093446564,-151.0,0.00016438,2]
[390586598,1760093446574,-500.0,0.00016438,2]
[390586599,1760093446584,-151.0,0.00016438,2]
[390586600,1760093446593,-500.0,0.00016438,2]
[390586601,1760093446603,-151.0,0.00016438,2]
[390586602,1760093446614,-500.0,0.00016438,2]
[390586603,1760093446624,-500.0,0.00016438,2]
[390586604,1760093446634,-1898.58,0.00016438,2]
[390586605,1760093446643,-631.35617381,0.00016438,2]
[390586606,1760093446653,-234.86366,0.00016438,2]
[390586607,1760093446663,-595.1,0.00016438,2]
[390586608,1760093446672,-500.0,0.00016438,2]
[390586609,1760093446682,-500.0,0.00016438,2]
[390586610,1760093446692,-503.01189571,0.00016438,2]
[390586611,1760093446701,-891.79,0.00016438,2]
[390586612,1760093446713,-500.0,0.00016438,2]
[390586613,1760093446725,-500.0,0.00016438,2]
[390586614,1760093446736,-500.0,0.00016438,2]
[390586615,1760093446746,-211.983586,0.00016438,2]
[390586616,1760093446756,-211.983586,0.00016438,2]
[390586617,1760093446765,-211.983586,0.00016438,2]
[390586618,1760093446774,-211.983586,0.00016438,2]
[390586619,1760093446784,-211.983586,0.00016438,2]
[390586620,1760093446793,-500.0,0.00016438,2]
[390586621,1760093446841,-211.983586,0.00016438,2]
[390586622,1760093446851,-211.983586,0.00016438,2]
[390586623,1760093446860,-500.0,0.00016438,2]
[390586625,1760093446869,-596.82,0.00016438,2]
[390586626,1760093446878,-211.983586,0.00016438,2]
[390586627,1760093446887,-211.983586,0.00016438,2]
[390586628,1760093446896,-500.0,0.00016438,2]
[390586629,1760093446905,-500.0,0.00016438,2]
[390586630,1760093446914,-211.983586,0.00016438,2]
[390586631,1760093446923,-1893.06,0.00016438,2]
[390586632,1760093446933,-211.983586,0.00016438,2]
[390586633,1760093446942,-211.983586,0.00016438,2]
[390586634,1760093446951,-729.71,0.00016438,2]
[390586635,1760093446961,-991.8,0.00016438,2]
[390586636,1760093446971,-211.983586,0.00016438,2]
[390586637,1760093446980,-151.0,0.00016438,2]
[390586638,1760093446989,-500.0,0.00016438,2]
[390586639,1760093446998,-211.983586,0.00016438,2]
[390586640,1760093447008,-211.983586,0.00016438,2]
[390586641,1760093447020,-211.983586,0.00016438,2]
[390586642,1760093447034,-500.0,0.00016438,2]
[390586643,1760093447043,-500.0,0.00016438,2]
[390586644,1760093447052,-501.25766401,0.00016438,2]
[390586645,1760093447063,-500.0,0.00016438,2]
[390586646,1760093447072,-500.0,0.00016438,2]
[390586647,1760093447081,-1000.0,0.00016438,2]
[390586648,1760093447090,-151.681857,0.00016438,2]
[390586649,1760093447101,-151.0,0.00016438,2]
[390586650,1760093447110,-151.0,0.00016438,2]
[390586651,1760093447119,-151.0,0.00016438,2]
[390586652,1760093447128,-151.0,0.00016438,2]
[390586653,1760093447136,-154.856397,0.00016438,2]
[390586654,1760093447145,-500.53836085,0.00016473,2]
[390586655,1760093447154,-214.21809975,0.00016473,2]
[390586656,1760093447163,-500.0,0.00016473,2]
[390586657,1760093447172,-500.0,0.00016473,2]
[390586658,1760093447181,-372.10225396,0.00016473,2]
[390586659,1760093447191,-500.0,0.00016473,2]
[390586660,1760093447200,-500.0,0.00016473,2]
[390586661,1760093447211,-500.0,0.00016473,2]
[390586662,1760093447220,-500.0,0.00016473,2]
[390586663,1760093447229,-500.0,0.00016473,2]
[390586664,1760093447238,-500.0,0.00016473,2]
[390586665,1760093447247,-500.0,0.00016473,2]
[390586666,1760093447256,-500.0,0.00016473,2]
[390586667,1760093447267,-500.0,0.00016473,2]
[390586668,1760093447276,-500.0,0.00016473,2]
[390586669,1760093447285,-500.0,0.00016473,2]
[390586670,1760093447294,-500.86991837,0.00016473,2]
[390586671,1760093447302,-500.95947091,0.00016473,2]
[390586672,1760093447311,-500.0,0.00016473,2]
[390586673,1760093447320,-500.0,0.00016473,2]
[390586674,1760093447329,-157.30324439,0.00016473,2]
[390586675,1760093447338,-500.0,0.00016473,2]
[390586676,1760093447347,-500.0,0.00016473,2]
[390586677,1760093447356,-161.86847584,0.00016473,2]
[390586678,1760093447365,-500.0,0.00016473,2]
[390586679,1760093447373,-500.0,0.00016473,2]
[390586680,1760093447382,-500.0,0.00016473,2]
[390586681,1760093447391,-500.0,0.00016473,2]
[390586682,1760093447401,-689.43787838,0.00016475,2]
[390586683,1760093447410,-151.0,0.00016493,2]
[390586684,1760093447419,-151.0,0.00016493,2]
[390586685,1760093447428,-151.0,0.00016493,2]
[390586686,1760093447437,-920.0,0.00016493,2]
[390586687,1760093447447,-151.0,0.00016493,2]
[390586688,1760093447456,-190.36153996,0.00016493,2]
[390586689,1760093447467,-1152.50691993,0.000165,2]
[390586690,1760093447476,-202.19370338,0.00016509,2]
[390586691,1760093447486,-571.0,0.00016541,2]
[390586692,1760093447496,-168.0,0.00016543,2]
[390586693,1760093447505,-151.03,0.00016543,2]
[390586694,1760093447514,-151.03,0.00016543,2]
[390586695,1760093447524,-151.03,0.00016543,2]
[390586696,1760093447533,-151.03,0.00016543,2]
[390586697,1760093447542,-151.03,0.00016543,2]
[390586698,1760093447551,-151.03,0.00016543,2]
[390586699,1760093447560,-151.04,0.00016543,2]
[390586700,1760093447569,-191.68,0.00016543,2]
[390586701,1760093447577,-151.0,0.00016548,2]
[390586702,1760093447586,-151.0,0.00016548,2]
[390586703,1760093447595,-198.0,0.00016548,2]
[390586704,1760093447604,-920.0,0.00016548,2]
[390586705,1760093447613,-151.0,0.00016548,2]
[390586706,1760093447622,-151.0,0.00016548,2]
[390586707,1760093447631,-152.25446761,0.00016548,2]
[390586708,1760093447641,-151.0,0.00016548,2]
[390586709,1760093447650,-156.7887732,0.00016548,2]
[390586710,1760093447659,-152.12694981,0.00016548,2]
[390586711,1760093447667,-151.73338094,0.00016548,2]
[390586712,1760093447677,-151.0,0.00016602,2]
[390586713,1760093447686,-152.89660167,0.00016602,2]
[390586714,1760093447695,-920.0,0.00016602,2]
[390586715,1760093447704,-159.37404458,0.00016602,2]
[390586716,1760093447714,-152.38589367,0.00016603,2]
[390586717,1760093447724,-689.43787838,0.00016612,2]
[390586718,1760093447733,-168.0,0.00016643,2]
[390586719,1760093447742,-571.0,0.00016645,2]
[390586720,1760093447752,-310.0,0.00016651,2]
[390586721,1760093447762,-151.0,0.00016651,2]
[390586722,1760093447771,-151.0,0.00016657,2]
[390586723,1760093447780,-920.0,0.00016657,2]
[390586724,1760093447790,-2000.0,0.000167,2]
[390586725,1760093447799,-151.0,0.00016711,2]
[390586726,1760093447810,-151.0,0.00016711,2]
[390586727,1760093447819,-151.0,0.00016711,2]
[390586728,1760093447828,-239.06881,0.00016711,2]
[390586729,1760093447838,-152.507168,0.00016711,2]
[390586730,1760093447847,-151.0,0.00016711,2]
[390586731,1760093447861,-151.0,0.00016711,2]
[390586732,1760093447871,-151.0,0.00016711,2]
[390586733,1760093447881,-151.0,0.00016711,2]
[390586734,1760093447891,-151.0,0.00016711,2]
[390586735,1760093447901,-151.0,0.00016711,2]
[390586736,1760093447910,-151.0,0.00016711,2]
[390586737,1760093447920,-320.003172,0.00016711,2]
[390586738,1760093447930,-320.003172,0.00016711,2]
[390586739,1760093447939,-320.003172,0.00016711,2]
[390586740,1760093447949,-320.003172,0.00016711,2]
[390586741,1760093447961,-367.997147,0.00016711,2]
[390586742,1760093447971,-367.997147,0.00016711,2]
[390586743,1760093447980,-367.997147,0.00016711,2]
[390586744,1760093447989,-367.997147,0.00016711,2]
[390586745,1760093447998,-151.0,0.00016711,2]
[390586746,1760093448007,-151.0,0.00016711,2]
[390586747,1760093448020,-232.335434,0.00016711,2]
[390586748,1760093448029,-500.0,0.00016712,2]
[390586749,1760093448038,-192.40420351,0.00016712,2]
[390586750,1760093448047,-920.0,0.00016712,2]
[390586751,1760093448057,-500.0,0.00016712,2]
[390586752,1760093448067,-219.36677268,0.00016712,2]
[390586753,1760093448076,-500.0,0.00016712,2]
[390586754,1760093448087,-500.0,0.00016712,2]
[390586755,1760093448097,-500.0,0.00016712,2]
[390586756,1760093448107,-500.0,0.00016712,2]
[390586757,1760093448116,-500.0,0.00016712,2]
[390586758,1760093448126,-500.0,0.00016712,2]
[390586759,1760093448135,-728.67,0.00016712,2]
[390586760,1760093448145,-807.32,0.00016712,2]
[390586761,1760093448154,-500.0,0.00016712,2]
[390586762,1760093448164,-500.0,0.00016712,2]
[390586763,1760093448173,-500.0,0.00016712,2]
[390586764,1760093448182,-500.0,0.00016712,2]
[390586765,1760093448191,-518.55,0.00016712,2]
[390586766,1760093448200,-736.37,0.00016712,2]
[390586767,1760093448210,-500.0,0.00016712,2]
[390586768,1760093448220,-500.0,0.00016712,2]
[390586769,1760093448236,-399.08096042,0.00016712,2]
[390586770,1760093448246,-500.0,0.00016712,2]
[390586771,1760093448255,-500.0,0.00016712,2]
[390586772,1760093448265,-500.0,0.00016712,2]
[390586773,1760093448274,-410.00552209,0.00016712,2]
[390586774,1760093448283,-500.0,0.00016712,2]
[390586775,1760093448292,-500.0,0.00016712,2]
[390586776,1760093448301,-500.0,0.00016712,2]
[390586777,1760093448311,-500.0,0.00016712,2]
[390586778,1760093448320,-500.0,0.00016712,2]
[390586779,1760093448330,-940.11,0.00016712,2]
[390586780,1760093448339,-151.0,0.00016712,2]
[390586781,1760093448348,-151.0,0.00016712,2]
[390586782,1760093448357,-500.0,0.00016712,2]
[390586783,1760093448366,-186.09,0.00016712,2]
[390586784,1760093448375,-197.54,0.00016712,2]
[390586785,1760093448384,-625.27,0.00016712,2]
[390586786,1760093448394,-500.0,0.00016712,2]
[390586787,1760093448403,-500.0,0.00016712,2]
[390586788,1760093448412,-500.0,0.00016712,2]
[390586789,1760093448421,-966.08,0.00016712,2]
[390586790,1760093448431,-1020.76,0.00016712,2]
[390586791,1760093448441,-500.0,0.00016712,2]
[390586792,1760093448450,-513.78,0.00016712,2]
[390586793,1760093448460,-500.0,0.00016712,2]
[390586794,1760093448469,-500.0,0.00016712,2]
[390586795,1760093448478,-500.0,0.00016712,2]
[390586796,1760093448487,-500.0,0.00016712,2]
[390586797,1760093448497,-500.0,0.00016712,2]
[390586798,1760093448506,-305.74487698,0.00016712,2]
[390586799,1760093448515,-500.0,0.00016712,2]
[390586800,1760093448524,-612.96,0.00016712,2]
[390586801,1760093448533,-500.0,0.00016712,2]
[390586802,1760093448543,-500.0,0.00016712,2]
[390586803,1760093448552,-500.0,0.00016712,2]
[390586804,1760093448561,-500.0,0.00016712,2]
[390586805,1760093448571,-500.0,0.00016712,2]
[390586806,1760093448581,-500.0,0.00016712,2]
[390586807,1760093448590,-500.0,0.00016712,2]
[390586808,1760093448599,-500.0,0.00016712,2]
[390586809,1760093448609,-892.16,0.00016712,2]
[390586810,1760093448620,-500.0,0.00016712,2]
[390586811,1760093448630,-612.45,0.00016712,2]
[390586812,1760093448639,-500.0,0.00016712,2]
[390586813,1760093448648,-500.0,0.00016712,2]
[390586814,1760093448658,-398.09,0.00016712,2]
[390586815,1760093448667,-626.41,0.00016712,2]
[390586816,1760093448676,-509.96,0.00016712,2]
[390586817,1760093448686,-500.0,0.00016712,2]
[390586818,1760093448695,-538.49870538,0.00016712,2]
[390586819,1760093448705,-500.0,0.00016712,2]
[390586820,1760093448716,-370.34795207,0.00016712,2]
[390586821,1760093448727,-500.0,0.00016712,2]
[390586822,1760093448736,-500.0,0.00016712,2]
[390586823,1760093448746,-500.0,0.00016712,2]
[390586824,1760093448756,-712.95,0.00016712,2]
[390586825,1760093448765,-500.0,0.00016712,2]
[390586826,1760093448775,-500.0,0.00016712,2]
[390586827,1760093448784,-151.0,0.00016712,2]
[390586828,1760093448794,-500.0,0.00016712,2]
[390586829,1760093448803,-500.0,0.00016712,2]
[390586830,1760093448813,-500.0,0.00016712,2]
[390586831,1760093448822,-500.0,0.00016712,2]
[390586832,1760093448832,-151.0,0.00016712,2]
[390586833,1760093448842,-500.0,0.00016712,2]
[390586834,1760093448851,-500.0,0.00016712,2]
[390586835,1760093448861,-215.94,0.00016712,2]
[390586836,1760093448871,-838.61,0.00016712,2]
[390586837,1760093448880,-504.6195507,0.00016712,2]
[390586838,1760093448890,-586.07325661,0.00016712,2]
[390586839,1760093448899,-500.0,0.00016712,2]
[390586840,1760093448909,-431.4,0.00016712,2]
[390586841,1760093448918,-1427.17,0.00016712,2]
[390586842,1760093448928,-500.0,0.00016712,2]
[390586843,1760093448938,-987.33,0.00016712,2]
[390586844,1760093448948,-500.0,0.00016712,2]
[390586845,1760093448958,-327.42377819,0.00016712,2]
[390586846,1760093448968,-500.0,0.00016712,2]
[390586847,1760093448979,-500.0,0.00016712,2]
[390586848,1760093448989,-513.30909316,0.00016712,2]
[390586849,1760093448998,-500.0,0.00016712,2]
[390586850,1760093449008,-500.0,0.00016712,2]
[390586851,1760093449020,-279.947969,0.00016712,2]
[390586852,1760093449030,-500.0,0.00016712,2]
[390586853,1760093449039,-500.0,0.00016712,2]
[390586854,1760093449048,-318.03,0.00016712,2]
[390586855,1760093449058,-500.0,0.00016712,2]
[390586856,1760093449068,-500.0,0.00016712,2]
[390586857,1760093449078,-500.0,0.00016712,2]
[390586858,1760093449087,-500.0,0.00016712,2]
[390586859,1760093449099,-500.0,0.00016712,2]
[390586860,1760093449110,-500.0,0.00016712,2]
[390586861,1760093449119,-151.0,0.00016712,2]
[390586862,1760093449129,-151.0,0.00016712,2]
[390586863,1760093449138,-500.0,0.00016712,2]
[390586864,1760093449148,-1610.85,0.00016712,2]
[390586865,1760093449159,-500.0,0.00016712,2]
[390586866,1760093449168,-500.0,0.00016712,2]
[390586867,1760093449180,-500.0,0.00016712,2]
[390586868,1760093449189,-500.0,0.00016712,2]
[390586869,1760093449199,-500.0,0.00016712,2]
[390586870,1760093449208,-500.0,0.00016712,2]
[390586871,1760093449219,-500.0,0.00016712,2]
[390586872,1760093449228,-151.0,0.00016712,2]
[390586873,1760093449238,-151.0,0.00016712,2]
[390586874,1760093449247,-500.0,0.00016712,2]
[390586875,1760093449257,-500.0,0.00016712,2]
[390586876,1760093449267,-500.0,0.00016712,2]
[390586877,1760093449276,-500.0,0.00016712,2]
[390586878,1760093449285,-500.0,0.00016712,2]
[390586879,1760093449295,-1107.75,0.00016712,2]
[390586880,1760093449304,-151.0,0.00016712,2]
[390586881,1760093449314,-500.0,0.00016712,2]
[390586882,1760093449323,-500.0,0.00016712,2]
[390586883,1760093449332,-500.0,0.00016712,2]
[390586884,1760093449342,-151.0,0.00016712,2]
[390586885,1760093449351,-533.88,0.00016712,2]
[390586886,1760093449360,-500.0,0.00016712,2]
[390586887,1760093449370,-500.0,0.00016712,2]
[390586888,1760093449379,-4395.62,0.00016712,2]
[390586889,1760093449389,-500.0,0.00016712,2]
[390586890,1760093449399,-500.0,0.00016712,2]
[390586891,1760093449410,-500.0,0.00016712,2]
[390586892,1760093449419,-500.0,0.00016712,2]
[390586893,1760093449429,-780.91,0.00016712,2]
[390586894,1760093449439,-500.0,0.00016712,2]
[390586895,1760093449448,-500.0,0.00016712,2]
[390586896,1760093449458,-500.0,0.00016712,2]
[390586897,1760093449468,-500.0,0.00016712,2]
[390586898,1760093449477,-500.0,0.00016712,2]
[390586899,1760093449487,-500.0,0.00016712,2]
[390586900,1760093449496,-500.0,0.00016712,2]
[390586901,1760093449506,-500.0,0.00016712,2]
[390586902,1760093449515,-500.0,0.00016712,2]
[390586903,1760093449524,-500.0,0.00016712,2]
[390586904,1760093449534,-500.0,0.00016712,2]
[390586905,1760093449544,-416.55,0.00016712,2]
[390586906,1760093449553,-504.11079251,0.00016712,2]
[390586907,1760093449563,-2917.77,0.00016712,2]
[390586908,1760093449573,-606.63815036,0.00016712,2]
[390586909,1760093449583,-500.0,0.00016712,2]
[390586910,1760093449593,-500.0,0.00016712,2]
[390586911,1760093449602,-502.38203244,0.00016712,2]
[390586912,1760093449612,-500.0,0.00016712,2]
[390586913,1760093449621,-500.0,0.00016712,2]
[390586914,1760093449631,-500.0,0.00016712,2]
[390586915,1760093449641,-1512.31,0.00016712,2]
[390586916,1760093449650,-500.0,0.00016712,2]
[390586917,1760093449660,-500.0,0.00016712,2]
[390586918,1760093449669,-500.0,0.00016712,2]
[390586919,1760093449679,-500.0,0.00016712,2]
[390586920,1760093449689,-500.0,0.00016712,2]
[390586921,1760093449699,-500.0,0.00016712,2]
[390586922,1760093449708,-500.0,0.00016712,2]
[390586923,1760093449718,-385.38530838,0.00016712,2]
[390586924,1760093449728,-500.0,0.00016712,2]
[390586925,1760093449737,-500.0,0.00016712,2]
[390586926,1760093449748,-1968.23,0.00016712,2]